bitfinex-derivatives/quotes_BTCF0:USTF0_20250620
["timestamp","ask_amount","ask_price","bid_price","bid_amount"]
[1750431323418,0.21862744,104120.0,104110.0,1.6120008]
[1750431324124,0.57942744,104120.0,104110.0,0.5891131]
[1750431324320,1.07154048,104120.0,104110.0,0.27456]
[1750431324524,1.12174048,104120.0,104110.0,0.0996]
[1750431324723,1.12174048,104120.0,104110.0,0.92936]
[1750431324927,1.12174048,104120.0,104110.0,0.92976]
[1750431325336,1.49174048,104120.0,104110.0,0.87946]
[1750431325543,0.63222738,104120.0,104110.0,0.87946]
[1750431325840,1.12174048,104120.0,104110.0,0.87946]
[1750431326633,1.73154048,104120.0,104110.0,0.0493]
[1750431326839,1.53154048,104120.0,104110.0,0.8308]
[1750431327044,1.73154048,104120.0,104110.0,0.0014]
[1750431327235,1.71154048,104120.0,104110.0,0.001]
[1750431327434,1.71154048,104120.0,104110.0,0.0014]
[1750431328632,1.71162312,104120.0,104110.0,0.001]
[1750431328831,1.71162312,104120.0,104110.0,0.0014]
[1750431329348,1.55154048,104120.0,104110.0,0.0014]
[1750431329646,1.54154048,104120.0,104110.0,0.0014]
[1750431329832,0.83202738,104120.0,104110.0,0.0014]
[1750431330036,1.17154048,104120.0,104110.0,0.0014]
[1750431330238,1.75154048,104120.0,104110.0,0.0014]
[1750431330436,1.75154048,104120.0,104110.0,0.1934883]
[1750431330437,0.94766984,104120.0,104110.0,0.1934883]
[1750431330647,0.56646984,104120.0,104110.0,0.2413883]
[1750431330833,0.89646984,104120.0,104110.0,0.2895883]
[1750431331039,1.05698294,104120.0,104110.0,0.2895883]
[1750431331344,1.16598294,104120.0,104110.0,0.2416883]
[1750431331540,1.63858294,104120.0,104110.0,0.83056]
[1750431331740,1.15858294,104120.0,104110.0,0.001]
[1750431331948,1.15858294,104120.0,104110.0,0.2919882]
[1750431331949,0.61776984,104120.0,104110.0,0.2919882]
[1750431332151,0.56646984,104120.0,104110.0,0.2919882]
[1750431332448,0.56646984,104120.0,104110.0,0.0999]
[1750431332449,0.56746984,104120.0,104110.0,0.0999]
[1750431332650,0.56746984,104120.0,104110.0,0.002]
[1750431332651,1.55698294,104120.0,104110.0,0.002]
[1750431332948,1.65738294,104120.0,104110.0,0.0024]
[1750431333247,1.65738294,104120.0,104110.0,0.002]
[1750431333449,1.16786984,104120.0,104110.0,0.0024]
[1750431333942,1.65738294,104120.0,104110.0,0.0024]
[1750431334143,1.2132882,104110.0,104100.0,1.1197713]
[1750431334349,2.02268301,104110.0,104100.0,1.0717467]
[1750431334540,2.77129611,104110.0,104100.0,1.0717467]
[1750431334842,2.28178301,104110.0,104100.0,0.88004]
[1750431335148,2.56129611,104110.0,104100.0,1.0718267]
[1750431335644,2.77669617,104110.0,104100.0,0.0014]
[1750431335943,2.27986565,104110.0,104100.0,0.0014]
[1750431336143,2.76937875,104110.0,104100.0,0.001]
[1750431336344,2.76929611,104110.0,104100.0,0.0014]
[1750431336736,2.76929611,104110.0,104100.0,0.001]
[1750431336942,2.76929611,104110.0,104100.0,0.0014]
[1750431337143,2.18038301,104110.0,104100.0,0.0014]
[1750431337349,2.76809611,104110.0,104100.0,0.0014]
[1750431337748,2.75809611,104110.0,104100.0,0.0014]
[1750431338446,2.75809611,104110.0,104100.0,0.6830198]
[1750431338447,1.59786571,104110.0,104100.0,0.6830198]
[1750431338647,1.03989487,104110.0,104100.0,2.7311518]
[1750431338850,0.7876128,104110.0,104100.0,2.7311518]
[1750431339152,0.01578086,104140.0,104120.0,0.1440436]
[1750431339453,0.5528513,104130.0,104120.0,1.3903257]
[1750431339654,1.25476476,104140.0,104130.0,0.1920513]
[1750431340245,1.25476476,104140.0,104130.0,0.1924513]
[1750431340246,1.26076476,104140.0,104130.0,0.1924513]
[1750431340553,0.77025166,104140.0,104130.0,0.1924513]
[1750431340748,0.48318086,104140.0,104130.0,0.1924513]
[1750431340950,0.48218086,104140.0,104130.0,0.6819644]
[1750431341250,0.67521366,104140.0,104130.0,0.5224513]
[1750431341453,1.16472676,104140.0,104130.0,0.3304]
[1750431341657,1.16472676,104140.0,104130.0,0.1920513]
[1750431341848,0.67121366,104140.0,104130.0,0.1924513]
[1750431342044,1.16072676,104140.0,104130.0,0.1924513]
[1750431342249,0.67121366,104140.0,104130.0,0.1924513]
[1750431342451,1.16172676,104140.0,104130.0,0.1964513]
[1750431342652,1.18410854,104140.0,104130.0,0.1964513]
[1750431342849,0.48586442,104140.0,104130.0,1.0519644]
[1750431343044,0.3618,104140.0,104130.0,1.0519644]
[1750431343245,0.5548328,104140.0,104130.0,1.0775313]
[1750431343450,0.65541544,104140.0,104130.0,1.0775313]
[1750431343652,0.6563328,104140.0,104130.0,1.0771313]
[1750431343857,0.6563328,104140.0,104130.0,1.0775313]
[1750431344246,0.6563328,104140.0,104130.0,1.5670444]
[1750431344446,0.4643,104140.0,104130.0,1.5670444]
[1750431344650,0.6563328,104140.0,104130.0,1.0775313]
[1750431344857,0.6553328,104140.0,104130.0,1.0715313]
[1750431345050,0.6553328,104140.0,104130.0,1.0755313]
[1750431345854,0.2945328,104140.0,104130.0,1.4363313]
[1750431346054,0.2955328,104140.0,104130.0,1.4323313]
[1750431346356,0.2965328,104140.0,104130.0,1.4343313]
[1750431347157,0.1045,104140.0,104130.0,1.4343313]
[1750431347452,0.2965329,104140.0,104130.0,1.9038444]
[1750431347659,0.2965329,104140.0,104130.0,2.2438444]
[1750431347854,0.1035,104140.0,104130.0,2.2418444]
[1750431348055,0.01606513,104170.0,104160.0,0.191996]
[1750431348257,0.06726513,104170.0,104160.0,2.0300291]
[1750431348457,0.26024273,104170.0,104160.0,1.2023091]
[1750431348647,1.11055583,104170.0,104160.0,0.16]
[1750431348959,1.48506172,104170.0,104160.0,0.98784]
[1750431349155,0.99554862,104170.0,104160.0,0.98784]
[1750431349360,2.00276172,104170.0,104160.0,0.98884]
[1750431349554,1.54276172,104170.0,104160.0,0.83032]
[1750431349760,1.88676172,104170.0,104160.0,0.82992]
[1750431349958,1.88676172,104170.0,104160.0,0.83032]
[1750431350255,1.88684104,104170.0,104160.0,0.83032]
[1750431350560,1.98676172,104170.0,104160.0,0.82992]
[1750431350756,1.98676172,104170.0,104160.0,0.82952]
[1750431350961,1.88676172,104170.0,104160.0,0.0024]
[1750431351162,1.98676172,104170.0,104160.0,0.82952]
[1750431351457,1.49724862,104170.0,104160.0,0.82952]
[1750431351656,1.15224862,104170.0,104160.0,0.0014]
[1750431351856,1.95576172,104170.0,104160.0,0.82944]
[1750431352163,1.05624862,104170.0,104160.0,0.82944]
[1750431352458,1.54576172,104170.0,104160.0,0.82844]
[1750431352767,1.54676172,104170.0,104160.0,0.82944]
[1750431353256,1.54676172,104170.0,104160.0,1.021436]
[1750431353455,1.05724862,104170.0,104160.0,0.82944]
[1750431353652,1.92676172,104170.0,104160.0,0.82944]
[1750431353856,1.91676172,104170.0,104160.0,0.82944]
[1750431354057,1.54676172,104170.0,104160.0,0.82944]
[1750431354256,1.87676172,104170.0,104160.0,0.82944]
[1750431354456,2.07676172,104170.0,104160.0,0.0024]
[1750431354650,1.99676172,104170.0,104160.0,0.0024]
[1750431354856,1.98676172,104170.0,104160.0,0.8282]
[1750431355257,1.98676172,104170.0,104160.0,0.8278]
[1750431355461,2.01020142,104170.0,104160.0,0.8282]
[1750431355660,1.52068832,104170.0,104160.0,0.8282]
[1750431355852,1.90020142,104170.0,104160.0,0.8282]
[1750431356054,1.99020142,104170.0,104160.0,0.84538048]
[1750431356251,1.08068832,104170.0,104160.0,1.03737648]
[1750431356465,1.07968832,104170.0,104160.0,0.24173648]
[1750431356760,1.05624862,104170.0,104160.0,1.06645648]
[1750431357066,0.12896513,104170.0,104160.0,1.5637573]
[1750431357364,0.32094263,104170.0,104160.0,1.5337573]
[1750431357562,0.32194263,104170.0,104160.0,0.70124958]
[1750431357763,0.68274263,104170.0,104160.0,1.03649648]
[1750431358161,0.68274263,104170.0,104160.0,1.03609648]
[1750431358358,0.68274263,104170.0,104160.0,1.03613648]
[1750431358759,1.17225573,104170.0,104160.0,0.01934048]
[1750431359063,1.17225573,104170.0,104160.0,0.84386048]
[1750431359064,1.05724852,104170.0,104160.0,0.84386048]
[1750431359263,1.89676162,104170.0,104160.0,0.84346048]
[1750431359564,1.54676162,104170.0,104160.0,0.84450048]
[1750431359756,0.1920144,104150.0,104140.0,0.68630668]
[1750431359954,0.1920144,104150.0,104140.0,0.77151896]
[1750431360153,0.2964144,104150.0,104140.0,1.50142466]
[1750431360354,0.2964144,104150.0,104140.0,0.47508646]
[1750431360556,1.52123339,104150.0,104140.0,0.84439788]
[1750431360756,0.1920513,104130.0,104120.0,1.6243337]
[1750431360960,0.1920513,104130.0,104120.0,2.0335406]
[1750431361255,0.2974513,104130.0,104120.0,1.9191897]
[1750431361460,0.6582513,104130.0,104120.0,1.9197897]
[1750431362065,0.6582513,104130.0,104120.0,2.4089028]
[1750431362265,0.6582513,104130.0,104120.0,2.4093028]
[1750431362565,0.6622513,104130.0,104120.0,1.9217897]
[1750431362761,1.52627029,104130.0,104120.0,0.0724]
[1750431363062,1.52627029,104130.0,104120.0,0.89928]
[1750431363360,1.37675719,104130.0,104120.0,0.89904]
[1750431363563,1.85627029,104130.0,104120.0,0.89904]
[1750431364059,1.52627029,104130.0,104120.0,0.89908]
[1750431364264,1.03475719,104130.0,104120.0,1.0901497]
[1750431364955,1.03375719,104130.0,104120.0,1.0931497]
[1750431365268,0.3024512,104130.0,104120.0,1.0941497]
[1750431365466,0.3024512,104130.0,104120.0,1.0911497]
[1750431366160,0.3014512,104130.0,104120.0,1.5806628]
[1750431366363,0.004,104130.0,104120.0,2.2863759]
[1750431366662,0.01590021,104150.0,104140.0,0.1920328]
[1750431366866,0.01590021,104150.0,104140.0,3.5691859]
[1750431367066,0.01590021,104150.0,104140.0,3.8191859]
[1750431367458,0.01590021,104150.0,104140.0,2.8880728]
[1750431367768,0.01590021,104150.0,104140.0,2.6479528]
[1750431367960,0.01590021,104150.0,104140.0,1.8204328]
[1750431368161,0.06630021,104150.0,104140.0,3.0774659]
[1750431368370,0.06630021,104150.0,104140.0,3.0974659]
[1750431368664,0.07130021,104150.0,104140.0,3.0984659]
[1750431368868,0.07230021,104150.0,104140.0,3.1024659]
[1750431369162,0.02190021,104150.0,104140.0,3.4624659]
[1750431369367,0.01690021,104150.0,104140.0,3.9045059]
[1750431370459,0.053,104160.0,104150.0,0.1920154]
[1750431370662,0.06976513,104170.0,104160.0,0.1919969]
[1750431370966,0.31574363,104170.0,104160.0,1.5295969]
[1750431371166,0.31574363,104170.0,104160.0,1.3795969]
[1750431371668,0.12276513,104170.0,104160.0,1.86911]
[1750431371868,0.31574363,104170.0,104160.0,1.4895969]
[1750431372078,0.12576513,104170.0,104160.0,1.4904769]
[1750431372369,0.31774363,104170.0,104160.0,1.4904769]
[1750431372777,0.32074363,104170.0,104160.0,1.4904769]
[1750431372959,1.17105673,104170.0,104160.0,0.111]
[1750431373165,0.68154363,104170.0,104160.0,1.129797]
[1750431373369,0.12876513,104170.0,104160.0,1.8697501]
[1750431373560,0.32074363,104170.0,104160.0,1.7589501]
[1750431373761,0.32074363,104170.0,104160.0,2.1197501]
[1750431373762,0.12876513,104170.0,104160.0,2.1197501]
[1750431373965,0.12776513,104170.0,104160.0,2.1197501]
[1750431374465,0.37674952,104200.0,104190.0,0.1919416]
[1750431374466,0.4087815,104200.0,104190.0,0.1919416]
[1750431374664,1.09669329,104200.0,104190.0,1.0184216]
[1750431374866,1.07440619,104200.0,104190.0,0.82648]
[1750431375068,1.07340619,104200.0,104190.0,1.0184216]
[1750431375267,0.1919416,104190.0,104180.0,1.6073231]
[1750431375468,0.61664749,104190.0,104180.0,2.01823]
[1750431375671,0.61664749,104190.0,104180.0,1.19183]
[1750431375672,0.61764749,104190.0,104180.0,1.19183]
[1750431375872,0.2940416,104190.0,104180.0,2.01795]
[1750431376066,0.1011,104190.0,104180.0,2.5074631]
[1750431376368,0.005,104200.0,104190.0,0.1919416]
[1750431376673,0.1081,104200.0,104190.0,1.41990744]
[1750431376868,0.1071,104200.0,104190.0,0.93039434]
[1750431377369,0.1071,104200.0,104190.0,1.61185144]
[1750431377569,0.2960232,104200.0,104190.0,1.41990744]
[1750431377772,0.2960232,104200.0,104190.0,1.75651434]
[1750431378068,0.1041,104200.0,104190.0,1.75651434]
[1750431378270,0.1041,104200.0,104190.0,2.24602744]
[1750431378578,0.1071,104200.0,104190.0,2.24702744]
[1750431378873,0.2990232,104200.0,104190.0,2.24702744]
[1750431379074,0.67352909,104200.0,104190.0,1.75699434]
[1750431379269,0.67352909,104200.0,104190.0,1.7493416]
[1750431379469,0.67352909,104200.0,104190.0,1.7491816]
[1750431379774,0.2990232,104200.0,104190.0,0.7318]
[1750431379967,1.52384219,104200.0,104190.0,0.371]
[1750431380164,1.03432909,104200.0,104190.0,1.19896]
[1750431380369,1.03432909,104200.0,104190.0,0.374]
[1750431380569,1.5450104,104200.0,104190.0,0.354]
[1750431380771,1.5449104,104200.0,104190.0,1.20972]
[1750431381072,1.5449104,104200.0,104190.0,0.385]
[1750431381374,0.1919785,104170.0,104160.0,1.54365508]
[1750431381672,1.20325857,104180.0,104160.0,2.18843108]
[1750431381871,0.1919785,104170.0,104160.0,2.32041668]
[1750431382076,0.1919785,104170.0,104160.0,1.14886178]
[1750431382271,0.1919785,104170.0,104160.0,1.97326178]
[1750431382472,0.1919785,104170.0,104160.0,1.88326178]
[1750431382670,0.1919785,104170.0,104160.0,2.19326178]
[1750431382971,0.71274557,104180.0,104170.0,0.1919785]
[1750431383171,1.08825146,104180.0,104170.0,1.0158985]
[1750431383370,1.08825146,104180.0,104170.0,1.3758985]
[1750431383572,1.08725146,104180.0,104170.0,1.3758985]
[1750431383774,1.03925746,104180.0,104170.0,1.3758985]
[1750431384080,1.09555746,104180.0,104170.0,1.3758985]
[1750431384673,1.14595746,104180.0,104170.0,1.3758985]
[1750431384879,1.14795746,104180.0,104170.0,1.18392]
[1750431385081,1.63747056,104180.0,104170.0,1.18392]
[1750431385282,1.63747056,104180.0,104170.0,1.3758984]
[1750431385487,0.78815746,104180.0,104170.0,1.0165784]
[1750431385776,0.7882401,104180.0,104170.0,1.3865784]
[1750431385976,0.78815746,104180.0,104170.0,1.3865784]
[1750431386174,0.73916346,104180.0,104170.0,1.3865784]
[1750431386380,0.7402461,104180.0,104170.0,1.3865784]
[1750431386580,0.74016346,104180.0,104170.0,1.3865784]
[1750431386779,0.73916346,104180.0,104170.0,1.3865784]
[1750431386982,0.74016346,104180.0,104170.0,1.3865784]
[1750431387777,2.42647656,104180.0,104170.0,0.0014]
[1750431387981,2.42647656,104180.0,104170.0,0.65172]
[1750431388176,2.41969024,104180.0,104170.0,0.65172]
[1750431388378,2.10969053,104180.0,104170.0,0.001]
[1750431388582,2.45969053,104180.0,104170.0,0.82444]
[1750431388788,1.59696346,104180.0,104170.0,1.0164184]
[1750431389081,1.59596346,104180.0,104170.0,1.0464184]
[1750431389279,1.59596346,104180.0,104170.0,1.0164184]
[1750431389583,1.59596346,104180.0,104170.0,1.0362984]
[1750431389784,1.59696346,104180.0,104170.0,1.0362984]
[1750431389992,1.18715576,104180.0,104170.0,1.0362984]
[1750431390281,0.81264987,104180.0,104170.0,1.3970984]
[1750431390584,1.18715576,104180.0,104170.0,1.3970984]
[1750431390886,1.18815576,104180.0,104170.0,1.0362984]
[1750431391082,0.81264987,104180.0,104170.0,1.0362984]
[1750431391391,0.81364987,104180.0,104170.0,1.0962984]
[1750431391887,0.62068987,104180.0,104170.0,1.5070984]
[1750431392091,0.003,104180.0,104170.0,2.2066115]
[1750431392388,0.003,104180.0,104170.0,2.2295115]
[1750431392776,0.001,104200.0,104190.0,0.1919416]
[1750431393084,0.1063,104200.0,104190.0,2.2245347]
[1750431393293,0.1073,104200.0,104190.0,1.7250216]
[1750431393484,0.1073,104200.0,104190.0,2.2145347]
[1750431393686,0.1063,104200.0,104190.0,2.2145347]
[1750431393884,0.1113,104200.0,104190.0,2.4303787]
[1750431394086,0.005,104200.0,104190.0,2.4313787]
[1750431394287,0.01108264,104200.0,104190.0,2.4313787]
[1750431394483,0.011,104200.0,104190.0,2.6813787]
[1750431395086,0.001,104210.0,104190.0,2.6813787]
[1750431395087,0.001,104210.0,104200.0,0.1919231]
[1750431395286,0.001,104210.0,104200.0,1.0204362]
[1750431395482,0.001,104210.0,104200.0,1.3952362]
[1750431395886,0.001,104210.0,104200.0,1.5871642]
[1750431396091,0.00125,104240.0,104200.0,2.21276953]
[1750431396393,0.00125,104240.0,104230.0,1.05982516]
[1750431396592,0.46815,104240.0,104230.0,0.24024416]
[1750431396891,1.03450539,104240.0,104230.0,0.51951206]
[1750431397190,1.03450539,104240.0,104230.0,0.50024416]
[1750431397395,1.03450539,104240.0,104230.0,1.03351206]
[1750431397590,1.03750539,104240.0,104230.0,0.84132416]
[1750431397786,1.03750539,104240.0,104230.0,0.01764416]
[1750431398090,0.1918679,104230.0,104220.0,0.2398459]
[1750431398287,0.97867379,104230.0,104220.0,0.5618748]
[1750431398487,0.97867379,104230.0,104220.0,0.5718748]
[1750431398793,0.97867379,104230.0,104220.0,1.3249948]
[1750431399195,0.42600589,104230.0,104220.0,1.3249948]
[1750431399395,0.42600589,104230.0,104220.0,1.8145079]
[1750431399595,0.42500589,104230.0,104220.0,1.8145079]
[1750431399796,0.42800589,104230.0,104220.0,1.8145079]
[1750431399992,0.42800589,104230.0,104220.0,1.3249948]
[1750431399993,0.42700589,104230.0,104220.0,1.3249948]
[1750431400187,0.61887379,104230.0,104220.0,1.3289948]
[1750431400394,0.61987379,104230.0,104220.0,1.0989948]
[1750431400593,0.6061679,104230.0,104220.0,0.364]
[1750431400789,0.98067379,104230.0,104220.0,1.3986863]
[1750431401196,1.53127379,104230.0,104220.0,0.384]
[1750431401494,0.192916,104210.0,104200.0,0.239895]
[1750431401707,0.92822189,104210.0,104200.0,1.1306356]
[1750431401895,0.98372189,104210.0,104200.0,1.1306356]
[1750431402088,0.98272189,104210.0,104200.0,1.082655]
[1750431402500,0.98272189,104210.0,104200.0,1.0346832]
[1750431402699,1.34352189,104210.0,104200.0,0.84276]
[1750431402899,1.3595971,104210.0,104200.0,0.1936]
[1750431403093,2.2891102,104210.0,104200.0,0.011]
[1750431403299,2.76420805,104210.0,104200.0,0.0901]
[1750431403604,2.83520805,104210.0,104200.0,0.0931]
[1750431404214,2.83520805,104210.0,104200.0,0.0911]
[1750431404398,0.1919415,104190.0,104180.0,1.19444]
[1750431404603,1.68402982,104190.0,104180.0,1.8439199]
[1750431404806,2.28672074,104190.0,104180.0,1.00208]
[1750431405003,2.28672074,104190.0,104180.0,1.65168]
[1750431405206,2.37672074,104190.0,104180.0,1.8436399]
[1750431405405,2.18672074,104190.0,104180.0,1.8436399]
[1750431405602,2.25672074,104190.0,104180.0,0.8222]
[1750431405901,2.25672074,104190.0,104160.0,0.01803618]
[1750431405902,0.20785998,104170.0,104160.0,0.01803618]
[1750431406108,1.83267897,104170.0,104160.0,0.8415968]
[1750431406300,0.1919968,104160.0,104150.0,0.82236551]
[1750431406505,1.29080269,104160.0,104150.0,0.31896551]
[1750431406714,1.29080269,104160.0,104150.0,0.96752551]
[1750431406910,1.98031579,104160.0,104150.0,0.00136011]
[1750431407108,2.00354208,104160.0,104150.0,0.00136011]
[1750431407410,2.01108177,104160.0,104150.0,0.00136011]
[1750431407612,2.56056515,104160.0,104150.0,0.00136011]
[1750431407811,0.1920334,104140.0,104130.0,0.85827608]
[1750431408006,2.25765239,104140.0,104130.0,0.01754428]
[1750431408207,2.31205239,104140.0,104130.0,0.01754428]
[1750431408514,1.29173929,104140.0,104130.0,0.20959608]
[1750431408717,0.98173929,104140.0,104130.0,0.70910918]
[1750431408909,0.5528245,104150.0,104140.0,0.1920334]
[1750431409219,0.92733039,104150.0,104140.0,0.8512334]
[1750431409411,1.29733039,104150.0,104140.0,0.8512334]
[1750431409604,0.92733039,104150.0,104140.0,0.8516338]
[1750431409808,1.44733039,104150.0,104140.0,0.8516338]
[1750431410008,0.92733039,104150.0,104140.0,0.8516338]
[1750431410511,0.92733039,104150.0,104140.0,0.8512338]
[1750431410716,1.99684349,104150.0,104140.0,0.0004]
[1750431410915,1.99684349,104150.0,104130.0,0.0038]
[1750431410916,0.1920338,104140.0,104130.0,0.0038]
[1750431411112,1.98685279,104140.0,104130.0,0.0038]
[1750431411313,1.98685279,104140.0,104120.0,0.82088038]
[1750431411314,0.1920522,104130.0,104120.0,0.82088038]
[1750431411518,1.98687119,104130.0,104120.0,0.00136038]
[1750431411714,1.98687119,104130.0,104120.0,0.65092038]
[1750431412119,2.17895119,104130.0,104120.0,0.00136038]
[1750431412612,2.17895119,104130.0,104120.0,8e-08]
[1750431412817,2.20213964,104130.0,104120.0,8e-08]
[1750431413007,2.17895119,104130.0,104120.0,8e-08]
[1750431413216,2.17895119,104130.0,104120.0,0.00040008]
[1750431413518,2.17895119,104130.0,104120.0,8e-08]
[1750431413715,2.17895119,104130.0,104120.0,0.00040008]
[1750431413925,2.17995119,104130.0,104120.0,0.00640008]
[1750431414217,1.74503809,104130.0,104120.0,0.00640008]
[1750431414518,2.23455119,104130.0,104120.0,0.00140008]
[1750431414718,1.74503809,104130.0,104120.0,0.00140008]
[1750431414905,2.23455119,104130.0,104120.0,0.00140008]
[1750431415111,0.98295809,104130.0,104120.0,0.19347068]
[1750431415310,0.62215809,104130.0,104120.0,1.01255068]
[1750431415518,0.43010589,104130.0,104120.0,1.50206378]
[1750431415811,0.56855799,104130.0,104120.0,1.56726378]
[1750431416011,0.56855799,104130.0,104120.0,1.61076378]
[1750431416218,0.1940521,104130.0,104120.0,1.61076378]
[1750431416618,0.56855799,104130.0,104120.0,1.02255068]
[1750431416924,0.62215799,104130.0,104120.0,1.02255068]
[1750431417123,1.84247109,104130.0,104120.0,0.00140008]
[1750431417419,1.47247109,104130.0,104120.0,0.19347068]
[1750431417624,0.98295799,104130.0,104120.0,0.19347068]
[1750431417924,0.98295799,104130.0,104120.0,0.00140008]
[1750431419224,0.98295799,104130.0,104120.0,1.01195068]
[1750431419418,0.98295799,104130.0,104120.0,0.81988008]
[1750431420127,0.62215799,104130.0,104120.0,1.01195068]
[1750431420318,1.47247109,104130.0,104120.0,0.81988008]
[1750431420629,1.98247109,104130.0,104120.0,0.17156008]
[1750431420814,2.17455109,104130.0,104120.0,8e-08]
[1750431421017,2.17455109,104130.0,104120.0,0.00040008]
[1750431421221,2.17455109,104130.0,104110.0,0.81936]
[1750431421222,0.56657639,104120.0,104110.0,8e-08]
[1750431421524,2.46020259,104120.0,104110.0,8e-08]
[1750431421725,3.30069859,104120.0,104110.0,8e-08]
[1750431421920,3.30069859,104120.0,104090.0,0.0024]
[1750431421921,0.496,104110.0,104090.0,0.0024]
[1750431422123,0.1921628,104070.0,104060.0,0.00416094]
[1750431422324,1.97618179,104070.0,104060.0,0.00416094]
[1750431422624,1.97618179,104070.0,104060.0,0.00496094]
[1750431422926,1.97618179,104070.0,104060.0,0.00456094]
[1750431423115,2.16836579,104070.0,104060.0,0.00456094]
[1750431423422,2.24840375,104070.0,104060.0,0.00556094]
[1750431423822,2.24840375,104070.0,104060.0,0.00516094]
[1750431424124,2.05621975,104070.0,104060.0,0.00556094]
[1750431424324,2.05621975,104070.0,104060.0,0.00516094]
[1750431424525,1.49621975,104070.0,104060.0,0.19774214]
[1750431424718,0.64590665,104070.0,104060.0,0.19774214]
[1750431424922,0.45874385,104070.0,104060.0,0.19874214]
[1750431425324,0.009,104070.0,104060.0,1.21925603]
[1750431425526,0.01554196,104080.0,104070.0,0.1921627]
[1750431425726,0.01554196,104080.0,104070.0,0.9846627]
[1750431426024,0.01554196,104080.0,104070.0,2.15313659]
[1750431426329,0.01554196,104080.0,104070.0,1.81313659]
[1750431426522,0.01554196,104080.0,104070.0,1.94313659]
[1750431426717,0.21268616,104080.0,104070.0,0.8056627]
[1750431426925,0.02054196,104080.0,104070.0,1.97417659]
[1750431427232,0.02054196,104080.0,104070.0,1.4644627]
[1750431427425,0.02054196,104080.0,104070.0,1.37537659]
[1750431427621,0.1921104,104100.0,104090.0,0.1921073]
[1750431427822,0.1921258,104090.0,104080.0,0.6445429]
[1750431428023,0.58167004,104090.0,104080.0,0.6445429]
[1750431428221,0.06093835,104090.0,104080.0,1.4641029]
[1750431428425,0.25306415,104090.0,104080.0,0.6445442]
[1750431428628,0.98757004,104090.0,104080.0,0.0004]
[1750431428932,0.61386405,104090.0,104080.0,1.0115042]
[1750431429127,1.03186994,104090.0,104080.0,1.0119042]
[1750431429424,0.84074424,104090.0,104080.0,0.82736]
[1750431429624,0.01683835,104090.0,104080.0,1.80041809]
[1750431429928,0.05982515,104110.0,104080.0,2.61005308]
[1750431430124,0.01552515,104110.0,104100.0,0.90262119]
[1750431430319,0.01552515,104110.0,104100.0,0.7909]
[1750431430630,0.58131984,104110.0,104100.0,1.3319873]
[1750431430831,0.67241984,104110.0,104100.0,1.0119873]
[1750431431127,0.67241984,104110.0,104100.0,1.0123873]
[1750431431527,0.67341984,104110.0,104100.0,1.1046873]
[1750431432325,0.67341984,104110.0,104100.0,1.0578873]
[1750431432531,0.67341984,104110.0,104100.0,0.86578]
[1750431432727,1.03521984,104110.0,104100.0,1.0129872]
[1750431432927,0.48233104,104110.0,104100.0,1.0433872]
[1750431433132,1.03521984,104110.0,104100.0,1.0433872]
[1750431433432,0.84313104,104110.0,104100.0,1.0433872]
[1750431433632,1.03521984,104110.0,104100.0,1.0433872]
[1750431433927,1.03521984,104110.0,104100.0,0.85128]
[1750431434122,1.38493373,104110.0,104100.0,0.85128]
[1750431434328,1.38493373,104110.0,104100.0,0.85088]
[1750431434526,1.40771007,104110.0,104100.0,0.85128]
[1750431434729,0.1921257,104090.0,104080.0,0.01742299]
[1750431434929,0.94237917,104090.0,104080.0,0.66746299]
[1750431435232,1.03577917,104090.0,104080.0,0.66666299]
[1750431435431,1.39657917,104090.0,104080.0,0.66782299]
[1750431435735,1.76907874,104090.0,104080.0,0.01742299]
[1750431436032,2.52123074,104090.0,104080.0,0.02182299]
[1750431436235,2.50123074,104090.0,104080.0,0.004]
[1750431436532,2.23223074,104090.0,104080.0,0.0104]
[1750431436736,2.51223074,104090.0,104080.0,0.01]
[1750431436923,2.51223074,104090.0,104080.0,0.0104]
[1750431437129,2.49648316,104090.0,104080.0,0.0104]
[1750431437328,2.51241728,104090.0,104080.0,0.01]
[1750431437523,2.51241728,104090.0,104080.0,0.0104]
[1750431437730,1.60055139,104090.0,104080.0,0.0104]
[1750431437927,1.42055139,104090.0,104080.0,0.0104]
[1750431438130,1.42055139,104090.0,104080.0,0.2025441]
[1750431438429,1.80026528,104090.0,104080.0,0.0004]
[1750431438626,1.80426528,104090.0,104080.0,0.0014]
[1750431439333,1.42255139,104090.0,104080.0,0.17228]
[1750431439523,1.42255139,104090.0,104080.0,0.0014]
[1750431439726,1.42255139,104090.0,104080.0,0.82284]
[1750431440123,1.42255139,104090.0,104080.0,1.0149841]
[1750431440329,1.42255139,104090.0,104080.0,0.17228]
[1750431440530,1.40661727,104090.0,104080.0,0.3644241]
[1750431440732,1.40661727,104090.0,104080.0,1.0155441]
[1750431441230,1.0101257,104090.0,104080.0,1.0155441]
[1750431441430,1.0101257,104090.0,104080.0,1.1031441]
[1750431441635,1.38383159,104090.0,104080.0,1.1031441]
[1750431441832,1.38383159,104090.0,104080.0,1.0155441]
[1750431442134,0.003,104090.0,104080.0,2.06621799]
[1750431442336,0.003,104090.0,104080.0,2.15381799]
[1750431442525,0.003,104090.0,104080.0,1.8041041]
[1750431442724,0.003,104090.0,104080.0,2.98425799]
[1750431442932,0.01602485,104100.0,104090.0,0.1921257]
[1750431443130,0.01602485,104100.0,104090.0,1.03313959]
[1750431443332,0.20813205,104100.0,104090.0,0.6434257]
[1750431443528,0.20813205,104100.0,104090.0,0.6534257]
[1750431443736,0.01602485,104100.0,104090.0,0.99313959]
[1750431443931,0.01602485,104100.0,104090.0,1.56527559]
[1750431443932,0.0133303,104100.0,104090.0,1.56527559]
[1750431444139,0.0133303,104100.0,104090.0,1.20012019]
[1750431444339,0.0133303,104100.0,104090.0,1.53012019]
[1750431444536,0.2881371,104110.0,104100.0,0.1921072]
[1750431444736,0.66184299,104110.0,104100.0,0.8371246]
[1750431444945,1.11394299,104110.0,104100.0,0.8371246]
[1750431445132,0.1921072,104100.0,104090.0,0.10967854]
[1750431445336,0.1921072,104100.0,104090.0,1.12396394]
[1750431445538,0.2398072,104100.0,104090.0,1.12496394]
[1750431445736,0.2398072,104100.0,104090.0,1.12364394]
[1750431445938,0.2398072,104100.0,104090.0,1.15364424]
[1750431446133,0.2834072,104100.0,104090.0,1.15404424]
[1750431446333,0.2834072,104100.0,104090.0,1.15364424]
[1750431446548,0.2844072,104100.0,104090.0,1.15704424]
[1750431447044,0.30723864,104100.0,104090.0,1.15704424]
[1750431447641,0.30723864,104100.0,104090.0,0.33520424]
[1750431447642,0.66803864,104100.0,104090.0,0.33520424]
[1750431447848,0.66803864,104100.0,104090.0,1.06480424]
[1750431448144,0.66803864,104100.0,104090.0,1.7657301]
[1750431448145,0.02383144,104100.0,104090.0,1.7657301]
[1750431448344,0.001,104100.0,104090.0,2.20154399]
[1750431448539,0.001,104100.0,104090.0,1.38070399]